bitfinex-derivatives/quotes_SOLF0:USTF0_20250106
["timestamp","ask_amount","ask_price","bid_price","bid_amount"]
[1736162807038,2.3168,215.89,215.86,9.69377664]
[1736162807339,7.37677664,215.94,215.86,9.69377664]
[1736162808230,2.3167,215.9,215.86,9.69377664]
[1736162809740,2.3167,215.9,215.88,7.37677664]
[1736162810037,7.37677664,215.94,215.88,7.37677664]
[1736162810238,2.3165,215.92,215.88,9.69357664]
[1736162810538,7.37677664,215.96,215.9,7.37677664]
[1736162810936,2.3164,215.93,215.9,7.37677664]
[1736162812129,2.3164,215.93,215.9,9.69337664]
[1736162812340,2.3162,215.95,215.9,7.37677664]
[1736162813540,2.3162,215.95,215.92,2.3164]
[1736162815836,2.3162,215.95,215.92,9.69317664]
[1736162816237,2.316,215.96,215.92,9.69317664]
[1736162817241,10.8531325,215.98,215.92,9.69317664]
[1736162817436,2.3161,215.96,215.92,9.69317664]
[1736162817642,10.8531325,215.98,215.92,7.37677664]
[1736162817941,7.37677664,215.98,215.92,7.37677664]
[1736162818844,7.37677664,215.98,215.9,7.37677664]
[1736162820435,2.3163,215.94,215.9,9.69337664]
[1736162820843,7.37677664,215.94,215.84,66.26864108]
[1736162821040,7.37677664,215.94,215.86,7.37677664]
[1736162821436,7.37677664,215.96,215.88,7.37677664]
[1736162822338,7.90860946,215.99,215.9,7.37677664]
[1736162822544,7.37677664,215.97,215.9,7.37677664]
[1736162822845,2.3161,215.95,215.91,2.3165]
[1736162823535,2.3162,215.94,215.91,2.3165]
[1736162823733,2.3162,215.94,215.9,7.37677664]
[1736162823943,2.3162,215.94,215.9,9.69337664]
[1736162826339,2.3162,215.94,215.91,2.3165]
[1736162826536,10.8530861,215.98,215.9,7.37677664]
[1736162826736,2.3161,215.95,215.9,7.37677664]
[1736162826944,2.3161,215.95,215.92,2.3164]
[1736162828046,10.85292609,215.98,215.9,7.37677664]
[1736162828345,2.316,215.97,215.93,2.3162]
[1736162829341,10.85292609,215.98,215.92,9.69317664]
[1736162829745,7.37677664,215.98,215.92,9.69317664]
[1736162830651,23.9532271,215.98,215.92,9.69317664]
[1736162830948,3.47614945,215.97,215.92,9.69317664]
[1736162831152,7.37677664,215.98,215.92,9.69317664]
[1736162831446,2.3161,215.95,215.92,9.69317664]
[1736162832551,2.3163,215.94,215.92,7.37677664]
[1736162836157,2.3163,215.94,215.92,9.69317664]
[1736162836952,2.3161,215.95,215.92,9.69317664]
[1736162838358,2.316,215.96,215.93,2.3163]
[1736162839046,3.47614945,215.99,215.93,2.3163]
[1736162839247,12.37677664,216.0,215.94,7.37677664]
[1736162839458,5.0,216.0,215.96,2.316]
[1736162839661,5.0,216.0,215.94,7.37677664]
[1736162839953,2.3158,215.99,215.95,2.3161]
[1736162840960,2.316,215.97,215.93,2.3163]
[1736162841162,7.37677664,215.99,215.93,2.3163]
[1736162841455,15.0903816,215.99,215.92,7.37677664]
[1736162841660,18.56653105,215.99,215.92,7.37677664]
[1736162841858,3.47614945,215.98,215.92,7.37677664]
[1736162842163,5.0,216.0,215.96,2.316]
[1736162842358,13.88836007,216.0,215.96,2.316]
[1736162842558,3.47614945,215.99,215.96,2.316]
[1736162842759,13.88835307,216.0,215.96,2.316]
[1736162843064,11.20415307,215.99,215.95,2.3161]
[1736162843260,7.71371193,215.99,215.94,7.37677664]
[1736162843459,16.602065,215.99,215.94,7.37677664]
[1736162844562,16.602065,215.99,215.84,66.26864108]
[1736162844563,16.602065,215.99,215.96,7.37677664]
[1736162844961,11.18986138,215.99,215.96,7.37677664]
[1736162845263,5.0,216.0,215.96,7.37677664]
[1736162845659,5.0,216.0,215.99,2.3157]
[1736162846059,5.0,216.0,215.96,7.37677664]
[1736162846661,12.71371193,216.0,215.97,2.3158]
[1736162846963,21.60002581,216.0,215.97,2.3158]
[1736162847163,3.47614945,215.99,215.97,2.3158]
[1736162847365,5.0,216.0,215.97,2.3158]
[1736162847865,5.0,216.0,215.96,9.69277664]
[1736162848165,5.0,216.0,215.96,7.37677664]
[1736162848458,2.3158,215.98,215.96,7.37677664]
[1736162848865,8.88567111,215.99,215.96,7.37677664]
[1736162849563,16.59573409,215.99,215.96,7.37677664]
[1736162850366,16.59573409,215.99,215.95,7.37677664]
[1736162850666,2.3159,215.97,215.95,7.37677664]
[1736162854378,2.316,215.96,215.95,7.37677664]
[1736162856571,7.37677664,215.98,215.84,66.26864108]
[1736162856769,7.37677664,215.98,215.92,7.37677664]
[1736162856969,10.85292609,215.98,215.92,7.37677664]
[1736162857178,2.3163,215.93,215.92,7.37677664]
[1736162857476,10.85292609,215.98,215.84,66.26864108]
[1736162857675,16.27287739,215.98,215.91,7.37677664]
[1736162857870,7.72285534,215.97,215.93,7.37677664]
[1736162858067,7.72285534,215.97,215.94,6.13]
[1736162858267,8.89583495,215.99,215.94,6.13]
[1736162858268,16.61869029,215.99,215.94,6.13]
[1736162859275,2.3161,215.95,215.94,6.13]
[1736162879994,3.47614945,215.96,215.94,6.13]
[1736162880185,2.3159,215.97,215.93,7.37677664]
[1736162882297,2.3159,215.97,215.93,9.69307664]
[1736162885197,2.3159,215.97,215.95,7.37677664]
[1736162885397,3.4757067,215.98,215.95,9.69287664]
[1736162885598,3.4757067,215.98,215.97,7.37677664]
[1736162887703,10.04153397,215.99,215.97,7.37677664]
[1736162888101,5.79121067,215.99,215.97,7.37677664]
[1736162888302,2.3157,215.99,215.97,7.37677664]
[1736162888905,7.3156,216.0,215.97,7.37677664]
[1736162889205,5.0,216.0,215.97,7.37677664]
[1736162889400,2.3157,215.99,215.97,7.37677664]
[1736162890099,5.0,216.0,215.97,7.37677664]
[1736162890295,5.0,216.0,215.98,2.3158]
[1736162892009,5.0,216.0,215.97,7.37677664]
[1736162892203,5.0,216.0,215.97,9.69257664]
[1736162893904,7.3156,216.0,215.97,2.3158]
[1736162894105,7.3156,216.0,215.98,7.37677664]
[1736162895905,5.0,216.0,215.98,7.37677664]
[1736162896113,5.0,216.0,215.98,9.69257664]
[1736162900217,5.0,216.0,215.98,7.37677664]
[1736162902016,5.0,216.0,215.98,9.69257664]
[1736162902318,5.0,216.0,215.98,7.37677664]
[1736162904520,5.0,216.0,215.89,2.4938]
[1736162904821,5.0,216.0,215.95,7.37677664]
[1736162905519,5.0,216.0,215.97,7.37677664]
[1736162905723,8.47551067,216.0,215.97,7.37677664]
[1736162905925,5.0,216.0,215.97,7.37677664]
[1736162906127,2.3159,215.98,215.97,7.37677664]
[1736162909327,2.3162,215.95,215.94,7.37677664]
[1736162910431,2.3165,215.91,215.9,81.49300222]
[1736162910631,2.3165,215.91,215.9,88.86977886]
[1736162911027,2.3165,215.91,215.9,7.37677664]
[1736162913627,1.0,215.92,215.9,7.37677664]
[1736162913938,3.3165,215.92,215.9,7.37677664]
[1736162916533,1.0,215.92,215.9,9.69337664]
[1736162928348,1.0,215.92,215.91,2.3165]
[1736162933039,1.0,215.92,215.91,9.69327664]
[1736162937249,1.0,215.92,215.91,2.3165]
[1736162937449,1.0,215.92,215.91,9.69327664]
[1736162943456,1.0,215.92,215.91,2.3165]
[1736162943657,1.0,215.92,215.91,9.69327664]
[1736162944057,1.0,215.92,215.91,2.3165]
[1736162944258,1.0,215.92,215.91,9.69327664]
[1736162953958,1.0,215.92,215.83,83.04460908]
[1736162954168,8.37677664,215.92,215.85,7.37677664]
[1736162955465,2.3166,215.91,215.87,2.317]
[1736162955664,8.37677664,215.92,215.85,7.37677664]
[1736162956066,8.37677664,215.92,215.87,2.317]
[1736162957366,7.37677664,215.88,215.74,51.19428727]
[1736162957567,7.37677664,215.88,215.67,24.07526728]
[1736162957568,7.37677664,215.86,215.79,7.37677664]
[1736162957865,2.3172,215.86,215.81,7.37677664]
[1736162958771,1.4521,215.9,215.75,25.59714362]
[1736162958772,7.37677664,215.83,215.75,25.59714362]
[1736162958967,7.37677664,215.83,215.77,7.37677664]
[1736162959267,2.3171,215.86,215.8,2.3177]
[1736162959473,2.3171,215.86,215.79,7.37677664]
[1736162959865,7.37677664,215.84,215.66,25.59714362]
[1736162960066,2.3178,215.8,215.74,7.37677664]
[1736162960368,1.0,215.82,215.76,7.37677664]
[1736162960571,2.3177,215.81,215.76,9.69487664]
[1736162960770,1.0,215.82,215.76,7.37677664]
[1736162960978,2.3176,215.81,215.77,2.318]
[1736162961176,2.3176,215.81,215.76,7.37677664]
[1736162961867,2.3176,215.81,215.75,9.69497664]
[1736162962072,2.3179,215.79,215.75,7.37677664]
[1736162962975,2.3179,215.79,215.73,7.37677664]
[1736162963380,2.3178,215.79,215.74,2.3183]
[1736162967383,2.318,215.78,215.74,2.3183]
[1736162967881,7.37677664,215.81,215.68,2.9522]
[1736162968080,2.3181,215.77,215.73,9.69517664]
[1736162969978,2.3181,215.77,215.73,7.37677664]
[1736162970181,2.3181,215.77,215.74,2.3184]
[1736162970785,1.0,215.79,215.75,7.37677664]
[1736162971084,1.0,215.79,215.77,7.37677664]
[1736162971986,1.0,215.79,215.77,9.69467664]
[1736162974597,1.0,215.79,215.78,2.3179]
[1736162974991,1.0,215.79,215.77,7.37677664]
[1736162978092,1.0,215.79,215.68,2.9522]
[1736162978292,2.3181,215.77,215.74,7.37677664]
[1736162980598,2.3181,215.77,215.74,9.69507664]
[1736162981893,2.3181,215.77,215.74,2.3183]
[1736162990303,1.3837,215.82,215.73,7.37677664]
[1736162990601,3.318,215.78,215.75,9.69497664]
[1736162992002,1.0,215.78,215.77,2.318]
[1736162995600,1.0,215.79,215.77,2.318]
[1736162996306,1.0,215.79,215.75,9.69497664]
[1736162996604,1.0,215.79,215.75,7.37677664]
[1736162996806,3.3179,215.79,215.76,2.3182]
[1736163001203,2.3179,215.78,215.75,9.69497664]
[1736163003002,2.3179,215.78,215.75,2.3182]
[1736163005808,1.0,215.79,215.73,2.3184]
[1736163006011,1.0,215.76,215.7,7.37677664]
[1736163006312,8.37677664,215.76,215.7,7.37677664]
[1736163006507,1.0,215.76,215.7,9.69547664]
[1736163007005,2.3185,215.73,215.7,9.69547664]
[1736163008810,2.3185,215.73,215.7,2.3187]
[1736163009007,2.3189,215.69,215.66,2.3192]
[1736163009912,2.3191,215.68,215.64,6.78497597]
[1736163010113,2.3191,215.68,215.65,7.37677664]
[1736163010504,2.3191,215.67,215.64,4.46557597]
[1736163010708,2.3191,215.67,215.64,11.84235261]
[1736163011314,2.3191,215.67,215.64,14.16175261]
[1736163011512,7.37677664,215.71,215.64,14.16175261]
[1736163011813,1.0,215.62,215.52,6.3992859]
[1736163012012,1.0,215.62,215.61,7.37677664]
[1736163012911,1.0,215.62,215.61,9.69657664]
[1736163013105,1.0,215.62,215.52,1.3928]
[1736163013513,7.37677664,215.68,215.6,9.69667664]
[1736163013514,1.0,215.61,215.6,9.69667664]
[1736163018511,2.8875,215.74,215.6,7.37677664]
[1736163018716,7.37677664,215.73,215.67,2.3191]
[1736163019622,2.3188,215.71,215.67,2.3191]
[1736163021724,13.92,215.86,215.68,7.37677664]
[1736163021920,2.3183,215.75,215.71,2.3186]
[1736163022127,7.37677664,215.78,215.7,7.37677664]
[1736163022319,7.37677664,215.76,215.7,7.37677664]
[1736163023528,2.3184,215.74,215.7,9.69557664]
[1736163024422,2.3185,215.73,215.7,9.69557664]
[1736163024629,2.3185,215.73,215.7,2.3188]
[1736163026032,4.88684119,215.81,215.7,7.37677664]
[1736163026235,2.3179,215.78,215.73,7.37677664]
[1736163027330,2.3179,215.78,215.73,9.69517664]
[1736163028430,2.3179,215.78,215.74,2.3183]
[1736163029430,2.3179,215.78,215.75,7.37677664]
[1736163030232,2.3179,215.78,215.74,2.3183]
[1736163031928,2.3181,215.77,215.73,9.69527664]
[1736163034235,2.3181,215.77,215.73,2.3185]
[1736163034536,2.3182,215.76,215.73,9.69527664]
[1736163035734,8.78377664,215.81,215.73,9.69527664]
[1736163036629,2.3181,215.77,215.73,9.69527664]
[1736163037730,2.3182,215.76,215.73,9.69527664]
[1736163040333,2.3182,215.76,215.73,7.37677664]
[1736163043130,2.3182,215.76,215.73,9.69527664]
[1736163046638,2.3182,215.76,215.73,7.37677664]
[1736163047139,2.3182,215.76,215.73,12.66677664]
[1736163047936,2.3182,215.76,215.73,14.98517664]
[1736163048740,2.3181,215.77,215.75,7.37677664]
[1736163048938,9.16371041,215.86,215.75,7.37677664]
[1736163049132,0.74302949,215.85,215.78,7.37677664]
[1736163049332,2.3178,215.79,215.78,7.37677664]
[1736163050435,3.47881612,215.87,215.78,7.37677664]
[1736163050637,7.37677664,215.9,215.82,7.37677664]
[1736163051240,2.3171,215.86,215.82,7.37677664]
[1736163051441,2.3171,215.86,215.82,9.69427664]
[1736163051944,2.3171,215.86,215.82,2.3175]
[1736163052143,2.3172,215.85,215.82,7.37677664]
[1736163052340,7.23098846,215.91,215.74,4.2189]
[1736163052541,7.37677664,215.85,215.75,2.3182]
[1736163052743,7.37677664,215.81,215.74,4.2189]
[1736163052943,7.37677664,215.81,215.75,7.37677664]
[1736163053444,2.3179,215.79,215.75,7.37677664]
[1736163054347,2.318,215.78,215.74,6.5372]
[1736163054845,2.318,215.78,215.74,13.91397664]
[1736163055038,2.318,215.78,215.74,12.49697664]
[1736163058039,2.318,215.78,215.76,7.37677664]
[1736163058246,2.3179,215.79,215.76,7.37677664]
[1736163059450,2.3179,215.79,215.76,9.69487664]
[1736163059650,7.37677664,215.83,215.78,7.37677664]
[1736163059949,2.3177,215.8,215.78,7.37677664]
[1736163062050,10.85559276,215.89,215.78,7.37677664]
[1736163062248,7.37677664,215.89,215.82,7.37677664]
[1736163063055,7.37677664,215.89,215.75,1.4899]
[1736163063056,4.93551612,215.92,215.84,7.37677664]
[1736163063250,1.4567,215.92,215.86,7.37677664]
[1736163063553,2.3167,215.9,215.88,7.37677664]
[1736163063748,3.47881612,215.96,215.88,7.37677664]
[1736163063954,3.47881612,215.96,215.75,1.4899]
[1736163063955,3.47881612,215.96,215.9,7.37677664]
[1736163064159,2.3163,215.94,215.9,7.37677664]
[1736163065545,8.85517664,215.98,215.9,7.37677664]
[1736163065746,2.3163,215.93,215.9,7.37677664]
[1736163067552,13.76177664,216.0,215.92,7.37677664]
[1736163068154,2.3162,215.95,215.92,7.37677664]
[1736163068356,13.76177664,216.0,215.92,7.37677664]
[1736163068753,5.0,216.0,215.92,7.37677664]
[1736163068959,2.3162,215.95,215.92,7.37677664]
[1736163070161,2.3163,215.94,215.92,7.37677664]
[1736163070554,7.37677664,215.99,215.76,4.6363]
[1736163070866,2.3165,215.91,215.89,7.37677664]
[1736163071761,2.3168,215.89,215.87,7.37677664]
[1736163071964,7.37677664,215.93,215.87,7.37677664]
[1736163072259,2.3169,215.88,215.87,7.37677664]
[1736163073272,7.37677664,215.95,215.87,7.37677664]
[1736163073563,7.37677664,215.95,215.89,7.37677664]
[1736163073971,2.3166,215.9,215.89,7.37677664]
[1736163076666,2.3166,215.91,215.89,7.37677664]
[1736163077365,7.37677664,215.97,215.89,7.37677664]
[1736163077565,2.3164,215.92,215.91,7.37677664]
[1736163078168,1.4181,215.98,215.91,7.37677664]
[1736163078365,1.4181,215.98,215.93,7.37677664]
[1736163079168,7.37677664,215.99,215.93,7.37677664]
[1736163079478,2.3161,215.96,215.93,7.37677664]
[1736163080267,2.3161,215.95,215.93,7.37677664]
[1736163080665,5.0,216.0,215.93,7.37677664]
[1736163080861,12.37677664,216.0,215.93,7.37677664]
[1736163081165,2.3161,215.96,215.93,7.37677664]
[1736163083670,12.37677664,216.0,215.93,7.37677664]
[1736163083866,2.316,215.96,215.93,7.37677664]
[1736163084067,2.316,215.96,215.95,7.37677664]
[1736163086470,2.316,215.96,215.92,2.3164]
[1736163086670,2.316,215.96,215.95,7.37677664]
[1736163088563,2.316,215.96,215.94,7.37677664]
[1736163090071,2.3161,215.95,215.94,7.37677664]
[1736163090570,2.3161,215.95,215.92,9.69317664]
[1736163090768,7.37677664,215.97,215.79,4.6356]
[1736163090972,5.0,216.0,215.79,4.6356]
[1736163090973,2.3167,215.9,215.79,4.6356]
[1736163091172,2.3167,215.9,215.88,7.37677664]
[1736163091674,2.3166,215.91,215.88,7.37677664]
[1736163091874,2.3166,215.91,215.9,7.37677664]
[1736163092564,2.3165,215.92,215.9,7.37677664]
[1736163094074,2.3163,215.94,215.9,9.69337664]
[1736163096475,2.3163,215.94,215.92,7.37677664]
[1736163100076,7.37677664,215.97,215.9,9.69337664]
[1736163100275,2.3164,215.93,215.9,7.37677664]
[1736163101275,7.37677664,215.97,215.9,7.37677664]
[1736163101481,5.0,216.0,215.92,7.37677664]
[1736163101482,2.3162,215.94,215.92,7.37677664]
[1736163102577,2.3161,215.95,215.92,9.69317664]
[1736163102977,7.37677664,215.99,215.92,9.69317664]
[1736163103183,2.316,215.96,215.92,9.69317664]
[1736163103888,2.3161,215.95,215.92,9.69317664]
[1736163106094,2.316,215.96,215.93,2.3163]
[1736163106290,2.316,215.96,215.94,7.37677664]
[1736163110293,2.3159,215.97,215.94,7.37677664]
[1736163112793,7.37677664,215.97,215.82,2.8621]
[1736163113001,7.37677664,215.95,215.89,7.37677664]
[1736163113391,2.3164,215.93,215.89,9.69347664]
[1736163113799,2.3164,215.93,215.89,7.37677664]
[1736163113994,2.3164,215.93,215.9,2.3166]
[1736163115996,7.37677664,215.95,215.82,2.8621]
[1736163116302,7.37677664,215.95,215.87,7.37677664]
[1736163116503,2.3167,215.9,215.87,9.69377664]
[1736163117297,2.3167,215.9,215.87,2.317]
[1736163117497,2.3167,215.9,215.87,9.69377664]
[1736163121098,2.3167,215.9,215.89,7.37677664]
[1736163122899,7.37677664,215.94,215.89,7.37677664]
[1736163123101,2.3166,215.91,215.89,9.69347664]
[1736163123297,7.37677664,215.96,215.89,9.69347664]
[1736163125497,2.3165,215.92,215.89,9.69347664]
[1736163126503,2.3166,215.91,215.89,7.37677664]
[1736163126803,7.37677664,215.94,215.87,7.37677664]
[1736163127595,7.37677664,215.94,215.87,9.69367664]
[1736163128299,2.3164,215.92,215.89,7.37677664]
[1736163128805,7.37677664,215.94,215.89,7.37677664]
[1736163129104,2.3165,215.91,215.89,7.37677664]
[1736163132806,7.37677664,215.94,215.89,7.37677664]
[1736163133105,2.3166,215.9,215.89,7.37677664]
[1736163133806,7.37677664,215.92,215.82,2.8621]
[1736163134003,7.37677664,215.92,215.86,7.37677664]
[1736163134606,2.3169,215.88,215.86,7.37677664]
[1736163135901,2.317,215.88,215.86,7.37677664]
[1736163139405,7.37677664,215.88,215.81,7.37677664]
[1736163140501,7.37677664,215.88,215.81,9.69427664]
[1736163140906,7.37677664,215.9,215.83,7.37677664]
[1736163142509,2.3171,215.86,215.83,7.37677664]
[1736163143010,2.3172,215.85,215.83,7.37677664]
[1736163148812,7.37677664,215.88,215.78,4.462631]
[1736163149015,7.37677664,215.88,215.81,7.37677664]
[1736163149807,2.3175,215.83,215.81,7.37677664]
[1736163152311,7.37677664,215.88,215.81,7.37677664]
[1736163152615,2.3173,215.84,215.81,7.37677664]
[1736163153113,7.37677664,215.91,215.83,9.69417664]
[1736163153312,7.37677664,215.91,215.85,7.37677664]
[1736163154515,7.37677664,215.91,215.83,7.37677664]
[1736163154719,2.3171,215.86,215.83,7.37677664]
[1736163155015,7.37677664,215.85,215.74,88.69097718]
[1736163155216,2.3176,215.82,215.78,2.3179]
[1736163155520,2.3176,215.82,215.78,9.69467664]
[1736163158121,2.3176,215.81,215.78,9.69467664]
[1736163158719,2.3175,215.82,215.8,7.37677664]
[1736163165026,2.3174,215.83,215.8,7.37677664]
[1736163167320,7.37677664,215.86,215.8,7.37677664]
[1736163167524,1.5074,215.91,215.84,7.37677664]
[1736163167721,8.88417664,215.91,215.84,7.37677664]
[1736163168226,2.3171,215.87,215.84,7.37677664]
[1736163170229,2.3171,215.86,215.84,7.37677664]
[1736163170631,3.47660437,215.93,215.84,7.37677664]
[1736163170826,7.37677664,215.91,215.84,7.37677664]
[1736163171129,2.317,215.87,215.84,7.37677664]
[1736163171529,7.37677664,215.91,215.84,7.37677664]
[1736163171722,3.47660437,215.93,215.84,7.37677664]
[1736163171921,7.37677664,215.91,215.84,7.37677664]
[1736163172331,2.3171,215.87,215.84,7.37677664]
[1736163173932,2.3171,215.86,215.84,7.37677664]
[1736163174831,7.37677664,215.91,215.84,7.37677664]
[1736163175135,2.8444,215.96,215.86,7.37677664]
[1736163175333,7.37677664,215.94,215.86,7.37677664]
[1736163175535,2.3167,215.9,215.88,7.37677664]
[1736163177437,2.3168,215.89,215.88,7.37677664]
[1736163178032,7.37677664,215.94,215.88,7.37677664]
[1736163178234,2.3167,215.9,215.88,7.37677664]
[1736163179226,7.37677664,215.94,215.88,7.37677664]
[1736163179429,2.3168,215.89,215.88,7.37677664]
[1736163181138,2.3168,215.89,215.86,9.69377664]
[1736163188746,2.8444,215.96,215.86,7.37677664]
[1736163188939,7.37677664,215.97,215.9,7.37677664]
[1736163189442,2.3162,215.95,215.92,7.37677664]
[1736163190540,3.47660437,215.99,215.84,4.3811]
[1736163190740,7.37677664,215.95,215.88,7.37677664]
[1736163191135,2.3166,215.91,215.84,4.3811]
[1736163191445,8.88644558,216.02,215.87,7.37677664]
[1736163191446,7.37677664,215.93,215.87,7.37677664]
[1736163191648,2.3167,215.9,215.87,7.37677664]
[1736163192346,2.3167,215.9,215.87,9.69367664]
[1736163193942,2.3167,215.9,215.87,2.3169]
[1736163194244,2.3167,215.9,215.87,9.69367664]
[1736163194548,2.3167,215.9,215.88,2.3168]
[1736163196043,7.37677664,215.93,215.88,2.3168]
[1736163196245,2.3167,215.9,215.88,2.3168]
[1736163197052,7.37677664,215.93,215.88,2.3168]
[1736163197255,2.3165,215.92,215.89,9.69347664]
[1736163197655,7.37677664,215.95,215.89,7.37677664]
[1736163198455,2.3164,215.93,215.9,2.3166]
[1736163199355,7.37677664,215.95,215.9,2.3166]
[1736163199661,2.3163,215.94,215.9,2.3166]
[1736163204057,2.3163,215.94,215.89,7.37677664]
[1736163204360,7.37677664,215.95,215.89,7.37677664]
[1736163204361,2.3161,215.95,215.89,7.37677664]
[1736163204763,2.3161,215.95,215.9,2.3166]
[1736163205059,2.3161,215.95,215.89,7.37677664]
[1736163205362,2.3162,215.94,215.91,2.3164]
[1736163206757,2.3161,215.96,215.92,2.3164]
[1736163209263,2.3165,215.92,215.88,2.3168]
[1736163209457,7.37677664,215.93,215.88,2.3168]
[1736163209961,2.3166,215.91,215.88,2.3168]
[1736163210160,7.37677664,215.93,215.88,2.3168]
[1736163211664,2.3168,215.89,215.84,4.3811]
[1736163211968,2.3168,215.89,215.85,7.37677664]
[1736163212169,3.47660437,215.96,215.87,2.3169]
[1736163212365,2.3167,215.9,215.87,2.3169]
[1736163212757,2.3166,215.91,215.88,2.3168]
[1736163213868,7.37677664,215.92,215.85,7.37677664]
[1736163214063,2.3167,215.9,215.87,2.317]
[1736163220567,2.3167,215.9,215.88,2.3169]
[1736163220776,2.3166,215.91,215.88,2.3169]
[1736163220976,7.37677664,215.94,215.87,7.37677664]
[1736163221470,2.957,215.97,215.89,7.37677664]
[1736163221669,7.37677664,215.96,215.89,7.37677664]
[1736163221877,2.3163,215.94,215.91,9.69327664]
[1736163222068,3.47660437,215.99,215.91,7.37677664]
[1736163222277,7.37677664,215.98,215.91,7.37677664]
[1736163223890,2.316,215.96,215.92,2.3164]
[1736163224177,7.37677664,215.98,215.92,2.3164]
[1736163224876,2.3165,215.91,215.88,2.3168]
[1736163227180,2.3165,215.92,215.89,2.3167]
[1736163228581,7.37677664,215.96,215.89,7.37677664]
[1736163230473,2.3162,215.94,215.91,2.3165]
[1736163233279,2.316,215.96,215.93,2.3163]
[1736163240888,2.316,215.96,215.89,7.37677664]
[1736163241084,2.3164,215.93,215.89,7.37677664]
[1736163241589,2.3163,215.94,215.89,7.37677664]
[1736163243485,2.3163,215.94,215.91,2.3165]
[1736163243681,2.3163,215.94,215.89,7.37677664]
[1736163244189,2.3163,215.94,215.91,2.3165]
[1736163247893,2.3163,215.94,215.92,2.3164]
[1736163248895,7.37677664,215.97,215.89,7.37677664]
[1736163249094,2.3165,215.92,215.9,2.3166]
[1736163249294,7.37677664,215.95,215.82,84.36238988]
[1736163249794,7.37677664,215.93,215.88,2.3168]
[1736163250295,2.3167,215.9,215.86,7.37677664]
[1736163250891,2.3167,215.9,215.87,2.3169]
[1736163251487,2.3167,215.9,215.86,7.37677664]
[1736163251686,2.3167,215.9,215.88,2.3168]
[1736163255494,2.3167,215.9,215.87,2.3169]
[1736163259007,7.37677664,215.89,215.82,84.36238988]
[1736163259194,7.37677664,215.87,215.82,84.36238988]
[1736163260404,9.69377664,215.87,215.84,2.3173]
[1736163260605,7.37677664,215.87,215.82,84.36238988]
[1736163261806,2.3173,215.85,215.82,84.36238988]
[1736163262009,2.3173,215.85,215.82,86.67988988]
[1736163262208,2.317,215.87,215.82,91.73916652]
[1736163262407,7.37677664,215.89,215.82,91.73916652]
[1736163262809,9.69327664,215.91,215.85,2.3172]
[1736163263111,9.69327664,215.91,215.84,7.37677664]
[1736163263112,7.37677664,215.91,215.84,7.37677664]
[1736163263613,2.3167,215.9,215.86,2.317]
[1736163264417,2.3168,215.89,215.84,7.37677664]
[1736163264610,2.3168,215.89,215.85,2.3172]
[1736163264806,7.37677664,215.91,215.85,2.3172]
[1736163265107,2.3169,215.88,215.85,2.3172]
[1736163267207,7.37677664,215.87,215.82,84.36238988]
[1736163268216,7.37677664,215.89,215.82,91.73916652]
[1736163268517,7.37677664,215.89,215.82,94.05666652]
[1736163270214,2.3172,215.86,215.82,94.05666652]
[1736163270812,7.37677664,215.89,215.82,84.36238988]
[1736163271017,2.3174,215.83,215.8,9.69437664]
[1736163271707,2.3175,215.82,215.8,7.37677664]
[1736163272719,2.3175,215.82,215.81,7.94]
[1736163284725,2.3174,215.83,215.81,7.94]
[1736163287622,2.3175,215.82,215.81,7.94]
[1736163305441,3.47793832,215.88,215.81,15.31677664]
[1736163305631,3.47793832,215.92,215.85,7.37677664]
[1736163305837,7.7235071,215.92,215.87,7.37677664]
[1736163306042,2.3166,215.91,215.87,7.37677664]
[1736163307343,2.3167,215.9,215.87,7.37677664]
[1736163307948,2.3167,215.9,215.85,2.3172]
[1736163308140,2.3167,215.9,215.85,9.69397664]
[1736163309242,7.37677664,215.92,215.85,9.69397664]
[1736163309642,7.37677664,215.92,215.85,7.37677664]
[1736163310639,7.37677664,215.88,215.79,2.3177]
[1736163310839,7.37677664,215.86,215.79,9.69447664]
[1736163311241,7.37677664,215.86,215.8,2.3177]
[1736163311736,7.37677664,215.86,215.81,7.37677664]
[1736163312640,7.37677664,215.88,215.81,7.37677664]
[1736163316550,7.37677664,215.88,215.81,9.69437664]
[1736163320544,7.37677664,215.88,215.81,2.3176]
[1736163320749,7.37677664,215.88,215.81,9.69437664]